bitfinex/quotes_SOLUSD_20240913
["timestamp","ask_amount","ask_price","bid_price","bid_amount"]
[1726231055060,0.12549,132.33,132.27,15.7497]
[1726231056764,7.5558,132.35,132.27,15.7497]
[1726231057156,7.5564,132.34,132.27,15.7497]
[1726231058166,7.5568,132.33,132.27,15.7497]
[1726231058344,7.68229,132.33,132.27,15.7497]
[1726231058541,7.68319,132.32,132.27,15.7497]
[1726231058746,0.12549,132.31,132.27,15.7497]
[1726231058976,23.902374,132.31,132.27,15.7497]
[1726231059864,0.12549,132.31,132.27,15.7497]
[1726231060065,0.12549,132.32,132.27,15.7497]
[1726231060448,7.5568,132.33,132.27,15.7497]
[1726231060656,18.8879,132.36,132.27,15.7497]
[1726231060855,7.5568,132.33,132.27,15.7497]
[1726231061067,0.12549,132.32,132.27,15.7497]
[1726231061852,23.902374,132.32,132.27,15.7497]
[1726231062070,0.12549,132.31,132.27,15.7497]
[1726231064755,7.68369,132.31,132.27,15.7497]
[1726231065171,0.12549,132.31,132.27,15.7497]
[1726231065874,7.5565,132.34,132.27,15.7497]
[1726231066577,7.5569,132.33,132.27,15.7497]
[1726231067362,0.12549,132.32,132.27,15.7497]
[1726231067567,7.5565,132.34,132.27,15.7497]
[1726231067769,0.2466895,132.37,132.28,6.2161]
[1726231067973,7.556,132.35,132.28,6.2161]
[1726231069286,0.25098,132.34,132.28,6.2161]
[1726231071476,31.584464,132.34,132.28,6.2161]
[1726231075786,0.12549,132.34,132.28,6.2161]
[1726231076193,0.25098,132.35,132.28,6.2161]
[1726231078501,7.5563,132.34,132.28,6.2161]
[1726231078665,0.12549,132.33,132.28,6.2161]
[1726231079294,0.12549,132.34,132.28,6.2161]
[1726231083793,7.68189,132.34,132.28,6.2161]
[1726231084108,0.12549,132.34,132.28,6.2161]
[1726231085205,31.458774,132.34,132.28,6.2161]
[1726231087385,0.12549,132.34,132.28,6.2161]
[1726231090182,7.68189,132.34,132.28,6.2161]
[1726231092517,7.5572,132.33,132.28,6.2161]
[1726231092808,0.12549,132.32,132.28,6.2161]
[1726231094300,0.12549,132.35,132.28,6.2161]
[1726231094491,7.80688,132.35,132.28,21.60335717]
[1726231096204,7.80688,132.35,132.28,6.2161]
[1726231097387,64.5942895,132.37,132.29,17.84205076]
[1726231097388,0.2466895,132.37,132.29,17.84205076]
[1726231097602,7.8014895,132.37,132.29,17.84205076]
[1726231097908,7.8014895,132.37,132.29,16.3305]
[1726231098687,0.12549,132.36,132.29,16.3305]
[1726231099312,0.25098,132.36,132.29,16.3305]
[1726231100115,0.25098,132.36,132.3,1.51132361]
[1726231100317,0.2466895,132.37,132.33,21.573]
[1726231100550,0.2466895,132.37,132.34,24.03953273]
[1726231100813,0.2466895,132.37,132.33,21.573]
[1726231101607,0.2466895,132.37,132.34,20.0]
[1726231101811,0.2466895,132.37,132.34,44.03953273]
[1726231101992,0.2466895,132.37,132.35,16.1629]
[1726231111301,0.2466895,132.37,132.33,6.1344]
[1726231111501,0.12549,132.36,132.33,6.1344]
[1726231111914,0.2466895,132.37,132.33,6.1344]
[1726231115530,7.8012895,132.37,132.31,15.6076]
[1726231115708,0.25098,132.36,132.31,15.6076]
[1726231116314,0.12549,132.36,132.31,15.6076]
[1726231117137,7.80638,132.36,132.31,15.6076]
[1726231117326,0.25098,132.36,132.31,15.6076]
[1726231117711,7.5563,132.34,132.28,16.2243]
[1726231118026,0.25098,132.33,132.28,16.2243]
[1726231126333,15.0106,132.36,132.29,15.38808369]
[1726231126544,0.12549,132.35,132.3,15.38808369]
[1726231126721,0.12549,132.35,132.29,15.38808369]
[1726231127129,7.68119,132.35,132.28,16.2243]
[1726231127335,7.5563,132.34,132.28,16.2243]
[1726231127753,0.12549,132.33,132.28,16.2243]
[1726231130754,0.12549,132.34,132.28,31.61238369]
[1726231132165,0.12549,132.34,132.29,15.38808369]
[1726231132337,0.25098,132.35,132.3,15.38808369]
[1726231134059,0.2466895,132.37,132.33,15.38808369]
[1726231134442,0.2466895,132.37,132.34,15.38808369]
[1726231135058,0.2466895,132.37,132.33,15.38808369]
[1726231141158,7.8015895,132.37,132.31,15.38808369]
[1726231141340,0.25098,132.36,132.31,20.0]
[1726231141543,24.027864,132.36,132.3,15.38808369]
[1726231142288,7.80618,132.36,132.3,15.38808369]
[1726231142451,7.5557,132.35,132.29,15.38808369]
[1726231142654,0.12549,132.34,132.29,15.38808369]
[1726231143250,0.12549,132.35,132.29,15.38808369]
[1726231144563,31.458474,132.35,132.29,15.38808369]
[1726231144761,0.12549,132.34,132.29,15.38808369]
[1726231145083,0.12549,132.34,132.25,15.1515]
[1726231145260,0.12549,132.34,132.27,15.38808369]
[1726231146380,7.5574,132.32,132.25,15.1515]
[1726231146677,0.25098,132.31,132.25,30.53958369]
[1726231147279,7.80908,132.31,132.25,15.1515]
[1726231147469,7.80908,132.31,132.24,15.38808369]
[1726231148676,0.25098,132.31,132.25,15.38808369]
[1726231149882,0.25098,132.31,132.26,15.38808369]
[1726231150069,0.12549,132.31,132.26,15.38808369]
[1726231151355,22.6575,132.32,132.26,15.38808369]
[1726231153360,22.6575,132.32,132.27,15.38808369]
[1726231154264,15.4137,132.35,132.29,15.38808369]
[1726231154788,0.25098,132.34,132.29,15.38808369]
[1726231155161,0.25098,132.34,132.3,15.38808369]
[1726231155359,0.12549,132.34,132.3,15.38808369]
[1726231155580,6.355,132.36,132.32,15.38808369]
[1726231155771,0.2466895,132.37,132.32,15.38808369]
[1726231158776,0.2466895,132.37,132.33,15.38808369]
[1726231158979,0.2466895,132.37,132.34,16.89910308]
[1726231159293,0.2466895,132.37,132.35,15.38808369]
[1726231159987,0.2466895,132.37,132.36,15.38808369]
[1726231161270,0.2466895,132.37,132.35,15.38808369]
[1726231162178,0.2466895,132.37,132.33,15.38808369]
[1726231162377,0.2466895,132.37,132.33,20.0]
[1726231162582,0.2466895,132.37,132.32,15.38808369]
[1726231162775,0.2466895,132.37,132.31,15.38808369]
[1726231163280,24.027864,132.36,132.29,15.38808369]
[1726231163586,31.582964,132.36,132.28,15.38808369]
[1726231163794,31.582964,132.36,132.29,15.38808369]
[1726231164101,31.582964,132.36,132.27,30.11672158]
[1726231164998,7.5561,132.35,132.28,20.0]
[1726231165200,0.12549,132.34,132.28,20.0]
[1726231166399,7.68119,132.35,132.28,20.0]
[1726231166606,0.12549,132.34,132.28,20.0]
[1726231166787,0.12549,132.35,132.28,20.0]
[1726231166984,0.12549,132.35,132.26,15.2579]
[1726231167199,15.2937,132.34,132.25,24.03762158]
[1726231167493,24.027864,132.33,132.25,24.03762158]
[1726231168485,15.2937,132.34,132.26,20.0]
[1726231168689,15.2937,132.34,132.29,24.03762158]
[1726231168998,22.2322895,132.37,132.3,20.0]
[1726231169682,29.7867895,132.37,132.3,20.0]
[1726231169997,7.5553,132.36,132.3,20.0]
[1726231170200,29.7870895,132.37,132.3,20.0]
[1726231170498,22.2322895,132.37,132.3,20.0]
[1726231171967,0.12549,132.36,132.3,20.0]
[1726231172379,0.12549,132.36,132.29,6.66910317]
[1726231172589,0.25098,132.36,132.29,6.66910317]
[1726231173398,0.25098,132.36,132.3,20.0]
[1726231174701,0.25098,132.36,132.28,20.0]
[1726231174998,24.027864,132.36,132.28,20.0]
[1726231176401,7.5557,132.35,132.28,20.0]
[1726231176581,0.12549,132.34,132.28,20.0]
[1726231176785,24.027864,132.34,132.28,20.0]
[1726231177194,24.027864,132.34,132.28,21.51164116]
[1726231177501,24.027864,132.34,132.28,20.0]
[1726231178404,7.5574,132.32,132.28,20.0]
[1726231178576,31.584264,132.34,132.25,44.03762158]
[1726231180307,0.25098,132.34,132.25,44.03762158]
[1726231181410,22.2322895,132.37,132.3,20.0]
[1726231182073,22.2322895,132.37,132.3,21.51135455]
[1726231182802,0.12549,132.36,132.3,21.51135455]
[1726231183110,0.25098,132.36,132.3,21.51135455]
[1726231186606,0.25098,132.36,132.3,20.0]
[1726231187580,31.582964,132.36,132.27,44.03762158]
[1726231188478,77.042964,132.36,132.27,44.03762158]
[1726231188682,7.5558,132.35,132.27,44.03762158]
[1726231189005,69.487864,132.36,132.24,6.43869]
[1726231189006,0.25098,132.34,132.25,44.03762158]
[1726231189197,0.12549,132.33,132.25,44.03762158]
[1726231189801,77.043164,132.36,132.27,24.03762158]
[1726231189802,24.027864,132.36,132.27,24.03762158]
[1726231189990,24.027864,132.36,132.28,20.0]
[1726231191100,31.583564,132.36,132.28,20.0]
[1726231192308,7.5559,132.35,132.25,44.03762158]
[1726231192599,0.25098,132.34,132.25,44.03762158]
[1726231192803,29.9977,132.33,132.23,16.7362895]
[1726231193103,31.585364,132.32,132.23,16.7362895]
[1726231193280,24.027864,132.32,132.23,16.7362895]
[1726231194087,24.027864,132.32,132.24,20.0]
[1726231195603,0.25098,132.32,132.24,44.03762158]
[1726231196510,22.4408,132.33,132.26,24.03762158]
[1726231197290,22.4408,132.33,132.23,16.7362895]
[1726231197291,22.4408,132.33,132.3,24.03762158]
[1726231197487,22.4408,132.33,132.28,24.03762158]
[1726231197488,16.1854,132.33,132.28,24.03762158]
[1726231197725,16.1854,132.33,132.29,20.0]
[1726231198798,16.1854,132.33,132.28,24.03762158]
[1726231198988,16.1854,132.33,132.29,20.0]
[1726231199189,6.4446,132.36,132.3,1.51144641]
[1726231199391,0.25098,132.35,132.29,20.0]
[1726231201412,6.4446,132.36,132.29,20.0]
[1726231202115,6.4446,132.36,132.3,24.03762158]
[1726231202311,6.4446,132.36,132.31,20.0]
[1726231202723,6.4446,132.36,132.29,20.0]
[1726231203724,0.12549,132.35,132.29,20.0]
[1726231204087,6.4446,132.36,132.29,20.0]
[1726231204290,6.4446,132.36,132.3,24.03762158]
[1726231204605,6.4446,132.36,132.31,20.0]
[1726231207616,0.12549,132.35,132.29,20.0]
[1726231208393,15.7179895,132.37,132.33,20.0]
[1726231208596,15.7179895,132.37,132.33,21.51098329]
[1726231209125,0.2466895,132.37,132.33,20.0]
[1726231211147,16.1267895,132.37,132.3,24.03762158]
[1726231212010,0.12549,132.36,132.28,39.69162158]
[1726231212208,0.25098,132.36,132.28,39.69162158]
[1726231212542,0.25098,132.36,132.29,20.0]
[1726231212905,24.027864,132.36,132.29,20.0]
[1726231213247,0.25098,132.36,132.29,20.0]
[1726231217012,24.027864,132.36,132.29,20.0]
[1726231220043,0.25098,132.36,132.29,20.0]
[1726231220223,0.12549,132.36,132.29,20.0]
[1726231220425,0.12549,132.36,132.31,20.0]
[1726231220922,0.12549,132.36,132.31,21.51123476]
[1726231221835,16.1267895,132.37,132.34,24.03762158]
[1726231222047,0.2466895,132.37,132.34,24.03762158]
[1726231222941,0.2466895,132.37,132.35,21.5108595]
[1726231223619,0.2466895,132.37,132.35,20.0]
[1726231225742,0.2466895,132.37,132.33,20.0]
[1726231228350,0.2466895,132.37,132.31,20.0]
[1726231229035,0.12549,132.36,132.31,20.0]
[1726231229235,16.04878,132.36,132.28,24.03762158]
[1726231230050,15.92329,132.36,132.28,24.03762158]
[1726231230226,15.62329,132.36,132.28,24.03762158]
[1726231230432,15.62329,132.36,132.27,15.4958]
[1726231230631,15.62329,132.36,132.27,39.53342158]
[1726231231541,15.62329,132.36,132.28,20.0]
[1726231231714,23.902374,132.35,132.27,24.03762158]
[1726231231920,23.902374,132.35,132.25,24.03762158]
[1726231232540,0.12549,132.35,132.27,24.03762158]
[1726231232851,24.027864,132.35,132.27,24.03762158]
[1726231233148,24.027864,132.35,132.28,20.0]
[1726231235651,15.62329,132.36,132.29,47.81450558]
[1726231235946,15.62329,132.36,132.3,20.0]
[1726231236141,15.62329,132.36,132.32,20.0]
[1726231237319,15.62329,132.36,132.3,20.0]
[1726231239952,0.25098,132.35,132.28,20.0]
[1726231240747,0.25098,132.35,132.27,24.03762158]
[1726231240748,24.027864,132.35,132.27,24.03762158]
[1726231241053,24.027864,132.35,132.25,24.03762158]
[1726231241633,31.583564,132.35,132.25,24.03762158]
[1726231241953,24.027864,132.35,132.25,24.03762158]
[1726231242552,24.027864,132.35,132.28,20.0]
[1726231242753,0.25098,132.35,132.29,24.03762158]
[1726231243049,0.25098,132.35,132.31,24.03762158]
[1726231244434,0.25098,132.35,132.3,20.0]
[1726231245057,15.62329,132.36,132.3,20.0]
[1726231252132,15.62329,132.36,132.31,24.03762158]
[1726231252432,15.62329,132.36,132.32,20.0]
[1726231253033,15.62329,132.36,132.3,20.0]
[1726231264073,15.62329,132.36,132.31,24.03762158]
[1726231264377,15.62329,132.36,132.32,15.37302136]
[1726231264551,15.62329,132.36,132.3,15.37302136]
[1726231264752,15.62329,132.36,132.31,20.0]
[1726231265478,15.62329,132.36,132.32,20.0]
[1726231267350,0.2466895,132.37,132.35,15.37302136]
[1726231267554,0.2466895,132.37,132.36,15.37302136]
[1726231267777,0.2466895,132.37,132.35,15.37302136]
[1726231268285,0.2466895,132.37,132.35,20.0]
[1726231268983,0.2466895,132.37,132.36,1.28671096]
[1726231269657,0.2466895,132.37,132.35,20.0]
[1726231270051,0.2466895,132.37,132.36,1.51074619]
[1726231270254,0.2466895,132.37,132.35,20.0]
[1726231270455,0.2466895,132.37,132.36,1.51072601]
[1726231270650,0.2466895,132.37,132.36,24.00995472]
[1726231270984,0.2466895,132.41,132.37,20.0]
[1726231271195,0.2466895,132.41,132.39,24.00995472]
[1726231272656,0.2466895,132.41,132.37,24.00995472]
[1726231273084,0.2466895,132.41,132.38,20.0]
[1726231276464,0.2466895,132.41,132.35,44.00995472]
[1726231277682,16.12619,132.4,132.34,20.0]
[1726231277982,16.25168,132.4,132.34,20.0]
[1726231279189,16.25168,132.4,132.33,24.00995472]
[1726231280485,16.25168,132.4,132.34,20.0]
[1726231281091,16.25168,132.4,132.31,24.00995472]
[1726231281399,23.80458,132.4,132.31,24.00995472]
[1726231281888,6.1531,132.38,132.31,24.00995472]
[1726231282092,0.12549,132.37,132.29,24.00995472]
[1726231282283,0.25098,132.37,132.29,24.00995472]
[1726231282588,24.027864,132.37,132.29,24.00995472]
[1726231282758,31.582564,132.37,132.29,24.00995472]
[1726231282957,0.25098,132.37,132.29,24.00995472]
[1726231283388,0.25098,132.37,132.3,20.0]
[1726231284180,0.25098,132.37,132.31,24.00995472]
[1726231284493,0.25098,132.37,132.32,20.0]
[1726231285981,0.12549,132.37,132.32,20.0]
[1726231289773,16.0007,132.4,132.34,20.0]
[1726231291268,16.0007,132.4,132.36,20.0]
[1726231292896,0.2466895,132.41,132.38,20.0]
[1726231300592,0.2466895,132.41,132.36,20.0]
[1726231300783,0.25098,132.4,132.33,40.07775472]
[1726231300991,6.75438,132.4,132.3,6.3815]
[1726231301296,6.75438,132.4,132.31,24.00995472]
[1726231302295,6.75438,132.4,132.34,20.0]
[1726231304897,6.5034,132.4,132.36,20.0]
[1726231306994,0.2466895,132.41,132.36,20.0]
[1726231307206,0.2466895,132.41,132.38,20.0]
[1726231307498,0.2466895,132.41,132.36,20.0]
[1726231308767,0.12549,132.4,132.33,24.00995472]
[1726231308996,0.12549,132.4,132.31,24.00995472]
[1726231308997,0.25098,132.4,132.31,24.00995472]
[1726231309205,0.25098,132.4,132.33,24.00995472]
[1726231310372,0.25098,132.4,132.34,20.0]
[1726231313774,22.5166,132.39,132.31,20.0]
[1726231314097,7.80498,132.38,132.31,20.0]
[1726231314313,0.25098,132.38,132.31,20.0]
[1726231314675,7.80498,132.38,132.3,24.00995472]
[1726231314873,7.80498,132.38,132.29,16.3803]
[1726231315097,31.331484,132.37,132.28,24.00995472]
[1726231315301,0.25098,132.36,132.28,24.00995472]
[1726231315774,28.8474,132.35,132.26,24.00995472]
[1726231315970,0.25098,132.34,132.26,24.00995472]
[1726231316403,24.027864,132.34,132.25,24.00995472]
[1726231316577,31.584264,132.34,132.25,24.00995472]
[1726231316897,31.584264,132.34,132.26,20.0]
[1726231317284,31.584264,132.34,132.25,24.00995472]
[1726231317474,7.5574,132.32,132.25,24.00995472]
[1726231317671,0.25098,132.31,132.25,24.00995472]
[1726231318899,0.25098,132.31,132.23,15.2680895]
[1726231318900,21.8511,132.3,132.23,24.25664422]
[1726231319710,21.8511,132.3,132.23,0.2466895]
[1726231319907,0.12549,132.29,132.23,0.2466895]
[1726231322014,21.8511,132.3,132.24,20.0]
[1726231324702,15.2218,132.3,132.26,20.0]
[1726231324895,6.2449,132.33,132.26,20.0]
[1726231325591,13.8021,132.33,132.26,20.0]
[1726231326428,6.2449,132.33,132.26,20.0]
[1726231326720,0.12549,132.32,132.26,20.0]
[1726231326923,0.25098,132.32,132.26,20.0]
[1726231330119,0.25098,132.32,132.26,15.38713215]
[1726231330425,24.027864,132.32,132.27,20.2466895]
[1726231331000,0.25098,132.32,132.27,20.2466895]
[1726231332907,7.5581,132.31,132.27,0.2466895]
[1726231333110,0.25098,132.3,132.27,0.2466895]
[1726231333333,31.585364,132.32,132.27,0.2466895]
[1726231334726,7.558,132.31,132.27,0.2466895]
[1726231334929,0.25098,132.3,132.27,0.2466895]
[1726231335703,0.25098,132.29,132.27,0.2466895]
[1726231335908,7.5587,132.3,132.27,0.2466895]
[1726231336113,0.25098,132.29,132.27,0.2466895]
[1726231339535,31.587064,132.29,132.27,0.2466895]
[1726231341137,31.336584,132.28,132.27,0.2466895]
[1726231341437,24.027864,132.28,132.27,0.2466895]
[1726231343620,31.587564,132.28,132.27,0.2466895]
[1726231346140,15.6704,132.29,132.27,0.2466895]
[1726231346444,31.335484,132.3,132.27,0.2466895]
[1726231346620,31.335084,132.31,132.27,0.2466895]
[1726231347130,16.4713,132.32,132.27,0.2466895]
[1726231347722,7.5564,132.34,132.28,15.38713215]
[1726231347932,25.31445972,132.35,132.29,15.38713215]
[1726231348241,25.31445972,132.35,132.28,20.0]
[1726231348417,17.75875972,132.35,132.28,20.0]
[1726231348617,25.31445972,132.35,132.28,20.0]
[1726231350734,0.25098,132.34,132.28,20.0]
[1726231352821,24.027864,132.34,132.27,0.2466895]
[1726231353023,31.584564,132.34,132.27,0.2466895]
[1726231353228,23.776884,132.32,132.27,0.2466895]
[1726231353440,0.25098,132.31,132.27,0.2466895]
[1726231357439,7.5564,132.34,132.27,0.2466895]
[1726231357637,23.776884,132.33,132.27,0.2466895]
[1726231357940,25.31455972,132.35,132.27,0.2466895]
[1726231359220,23.902374,132.34,132.27,0.2466895]
[1726231359723,0.12549,132.33,132.27,0.2466895]
[1726231359928,17.75875972,132.35,132.27,0.2466895]
[1726231360143,16.4417,132.35,132.27,0.2466895]
[1726231361246,0.25098,132.34,132.27,0.2466895]
[1726231362631,8.87103814,132.38,132.27,24.0235735]
[1726231362857,8.87093814,132.38,132.3,35.9705]
[1726231363147,7.5536,132.39,132.3,42.2916]
[1726231364124,23.776884,132.38,132.3,42.2916]
[1726231365443,0.25098,132.37,132.3,42.2916]
[1726231365738,7.5536,132.39,132.3,42.2916]
[1726231365934,0.25098,132.38,132.3,42.2916]
[1726231366341,7.80518,132.38,132.3,42.2916]
[1726231366553,31.582064,132.38,132.3,42.2916]
[1726231367051,31.582064,132.38,132.31,1.51126931]
[1726231367258,31.582064,132.38,132.3,42.2916]
[1726231367462,31.582064,132.38,132.31,1.51126955]
[1726231367757,24.76666801,132.41,132.32,21.51127017]
[1726231368051,24.76666801,132.41,132.33,1.5110362]
[1726231368052,16.8586895,132.41,132.33,1.5110362]
[1726231368261,16.8586895,132.41,132.34,15.36884414]
[1726231369256,7.5535,132.39,132.31,20.0]
[1726231369442,0.25098,132.38,132.33,20.0]
[1726231369640,31.580864,132.4,132.33,20.0]
[1726231370746,7.5534,132.39,132.33,20.0]
[1726231370954,0.25098,132.38,132.33,20.0]
[1726231372229,0.25098,132.39,132.33,15.36884414]
[1726231372431,0.25098,132.39,132.34,20.0]
[1726231372965,7.80448,132.39,132.34,20.0]
[1726231373551,0.12549,132.39,132.33,20.0]
[1726231373858,16.8586895,132.41,132.33,20.0]
[1726231373859,7.67839,132.4,132.33,20.0]
[1726231374744,23.902374,132.39,132.33,20.0]
[1726231374938,0.12549,132.38,132.33,20.0]
[1726231376329,24.4112895,132.41,132.33,20.0]
[1726231376552,0.25098,132.4,132.33,20.0]
[1726231377531,7.5534,132.39,132.33,20.0]
[1726231377737,0.25098,132.38,132.31,35.36884414]
[1726231378551,0.25098,132.38,132.32,15.36884414]
[1726231378946,0.25098,132.38,132.33,20.0]
[1726231379151,7.553,132.4,132.33,20.0]
[1726231379336,7.553,132.4,132.33,35.36884414]
[1726231379539,0.12549,132.39,132.31,20.0]
[1726231380133,0.12549,132.39,132.32,15.36884414]
[1726231380338,0.25098,132.39,132.32,15.36884414]
[1726231380746,23.776884,132.38,132.31,35.36884414]
[1726231380958,0.12549,132.37,132.31,35.36884414]
[1726231381276,0.12549,132.37,132.32,15.36884414]
[1726231381630,0.12549,132.37,132.33,20.0]
[1726231381835,0.12549,132.39,132.33,35.36884414]
[1726231382058,0.25098,132.39,132.33,35.36884414]
[1726231382266,0.12549,132.39,132.33,35.36884414]
[1726231382558,0.2466895,132.41,132.33,20.0]
[1726231382762,0.2466895,132.41,132.35,35.36884414]
[1726231382941,0.2466895,132.41,132.35,20.0]
[1726231384346,0.12549,132.4,132.35,20.0]
[1726231385878,0.25098,132.4,132.35,20.0]
[1726231386051,7.80388,132.4,132.35,20.0]
[1726231386969,0.25098,132.4,132.35,20.0]
[1726231387465,23.776884,132.39,132.32,35.36884414]
[1726231387662,0.12549,132.38,132.32,35.36884414]
[1726231388157,0.25098,132.38,132.32,35.36884414]
[1726231388558,0.25098,132.38,132.32,36.8799904]
[1726231388871,0.12549,132.38,132.32,35.36884414]
[1726231402470,23.776884,132.4,132.34,20.0]
[1726231402668,0.25098,132.39,132.34,20.0]
[1726231403381,0.25098,132.39,132.33,20.0]
[1726231405264,0.25098,132.39,132.31,14.61763826]
[1726231405470,0.25098,132.39,132.34,20.0]
[1726231410585,0.25098,132.39,132.32,35.36884414]
[1726231411195,31.331184,132.38,132.28,16.0169]
[1726231411369,23.776884,132.36,132.29,15.36884414]
[1726231411781,0.12549,132.35,132.3,15.36884414]
[1726231412200,0.12549,132.37,132.3,15.36884414]
[1726231412500,0.12549,132.36,132.31,15.36884414]
[1726231412683,0.25098,132.37,132.31,15.36884414]
[1726231416181,0.25098,132.37,132.3,15.36884414]
[1726231416376,0.25098,132.37,132.31,20.0]
[1726231418200,0.25098,132.37,132.3,20.0]
[1726231420199,7.80568,132.37,132.3,20.0]
[1726231420877,0.25098,132.37,132.3,20.0]
[1726231421182,23.776884,132.36,132.3,20.0]
[1726231421391,0.12549,132.35,132.3,20.0]
[1726231421590,23.776884,132.36,132.3,20.0]
[1726231421882,0.12549,132.35,132.3,20.0]
[1726231423423,22.0919,132.34,132.27,0.2466895]
[1726231423605,0.12549,132.33,132.27,0.2466895]
[1726231424309,0.12549,132.33,132.27,15.61553364]
[1726231424801,0.12549,132.33,132.28,20.0]
[1726231429004,23.902374,132.33,132.27,0.2466895]
[1726231429210,0.12549,132.32,132.27,0.2466895]
[1726231430503,23.776884,132.31,132.27,0.2466895]
[1726231430809,0.25098,132.3,132.27,0.2466895]
[1726231431710,15.79778,132.3,132.27,0.2466895]
[1726231432913,30.249884,132.29,132.27,0.2466895]
[1726231433100,0.12549,132.28,132.27,0.2466895]
[1726231434307,0.25098,132.28,132.27,0.2466895]
[1726231435202,23.776884,132.27,132.23,0.2466895]
[1726231435393,31.337284,132.27,132.23,0.2466895]
[1726231435587,0.25098,132.26,132.23,0.2466895]
[1726231436010,7.81188,132.26,132.23,0.2466895]
[1726231436219,0.25098,132.26,132.23,0.2466895]
[1726231437098,0.12549,132.26,132.23,0.2466895]
[1726231437311,6.473,132.29,132.24,15.36884414]
[1726231439398,16.0282,132.31,132.26,15.36884414]
[1726231440693,0.12549,132.3,132.26,15.36884414]
[1726231442000,8.87315305,132.35,132.27,15.36884414]
[1726231443502,23.776884,132.34,132.27,15.36884414]
[1726231443917,0.12549,132.33,132.27,15.36884414]
[1726231450520,0.25098,132.33,132.27,15.36884414]
[1726231451220,0.25098,132.33,132.27,20.0]
[1726231451604,0.25098,132.33,132.27,35.1313]
[1726231455522,0.25098,132.33,132.28,15.36884414]
[1726231456231,0.25098,132.33,132.27,52.01182999]
[1726231456939,0.12549,132.33,132.27,52.01182999]
[1726231457117,0.12549,132.33,132.27,50.50014414]
[1726231457523,0.12549,132.33,132.28,1.51157042]
[1726231457822,16.5484,132.36,132.28,15.36884414]
[1726231458512,7.8013895,132.37,132.3,15.36884414]
[1726231458513,0.2466895,132.37,132.3,15.36884414]
[1726231459123,0.25098,132.36,132.3,15.36884414]
[1726231461436,0.25098,132.36,132.3,20.0]
[1726231463847,7.5557,132.35,132.27,15.1313]
[1726231464022,0.25098,132.34,132.27,15.1313]
[1726231464914,0.12549,132.34,132.27,30.50014414]
[1726231465245,24.027864,132.35,132.28,20.0]
[1726231465428,24.027864,132.35,132.28,35.36884414]
[1726231466547,0.12549,132.35,132.3,15.36884414]
[1726231466922,0.2466895,132.37,132.31,15.36884414]
[1726231467443,0.2466895,132.37,132.3,15.36884414]
[1726231468128,7.8012895,132.37,132.3,15.36884414]
[1726231468327,0.12549,132.36,132.3,15.36884414]
[1726231474229,0.2466895,132.37,132.3,15.36884414]
[1726231485650,7.8012895,132.37,132.3,15.36884414]
[1726231488358,0.2466895,132.37,132.32,15.36884414]
[1726231488562,0.2466895,132.37,132.33,15.36884414]
[1726231488738,0.2466895,132.37,132.32,15.36884414]
[1726231492552,0.2466895,132.37,132.31,15.36884414]
[1726231492753,0.2466895,132.37,132.3,15.36884414]
[1726231492962,0.2466895,132.37,132.31,20.0]
[1726231494064,7.8013895,132.37,132.28,20.0]
[1726231494366,31.582964,132.36,132.28,20.0]
[1726231494663,24.027864,132.36,132.28,20.0]
[1726231494869,24.027864,132.36,132.28,35.36884414]
[1726231496367,24.027864,132.36,132.29,15.36884414]
[1726231496545,24.027864,132.36,132.3,20.0]
[1726231499860,31.582964,132.36,132.3,20.0]
[1726231500054,31.582964,132.36,132.28,35.36884414]
[1726231500864,22.2141,132.35,132.28,20.0]
[1726231501169,29.7698,132.35,132.28,20.0]
[1726231501468,0.12549,132.34,132.28,20.0]
[1726231503653,0.12549,132.34,132.28,15.36884414]
[1726231503953,0.12549,132.34,132.29,20.0]
[1726231504455,0.12549,132.34,132.28,20.0]